[Event "2nd Cambridge Open 2024"]
[Site "Cambridge"]
[Date "2024.02.19"]
[Round "2.7"]
[White "Vardanyan, Aras"]
[Black "Wadsworth, Matthew J"]
[Result "1/2-1/2"]
[ECO "C00"]
[WhiteElo "2284"]
[BlackElo "2450"]
[Annotator "TA"]
[PlyCount "97"]
[EventDate "2024.02.18"]
[EventType "swiss"]
[EventCountry "ENG"]
[SourceTitle "playchess.com"]
[Source "ChessBase"]
[SourceQuality "1"]
[TimeControl "5400+30"]

{[%evp 22,97,-16,-21,9,0,59,58,55,54,77,77,81,81,94,66,108,105,100,81,89,82,87,87,84,81,88,88,120,102,116,114,130,112,113,115,109,96,184,111,115,105,157,163,161,152,156,155,149,141,152,148,160,160,160,160,160,160,160,160,160,0,143,42,33,30,26,22,12,0,0,0,14,0,0,0,0,0]} 1. Nf3 {[%emt 0:00:03]} Nf6 {[%emt 0:00:35]} 2. g3 {[%emt 0:00:29]} b6 {[%emt 0:00:18]} 3. Bg2 {[%emt 0:00:18]} Bb7 {[%emt 0:00:08]} 4. O-O {[%emt 0:00:50]} e6 {[%emt 0:00:22]} 5. d3 {[%emt 0:03:17]} d5 {[%emt 0:02:27]} 6. Nbd2 {[%emt 0:01:52]} Be7 {[%emt 0:01:34]} 7. e4 {[%emt 0:00:19]} c5 {[%emt 0:01:06]} 8. Re1 {[%emt 0:00:46]} Nc6 {[%emt 0:02:54]} 9. c3 {[%emt 0:00:20]} Qc7 {[%emt 0:05:55]} 10. a3 {[%emt 0:02:53]} O-O {[%emt 0:07:00]} 11. e5 {[%emt 0:05:20]} Nd7 {[%emt 0:00:42]} 12. d4 {[%emt 0:03:30]} Ba6 {[%emt 0:07:50]} 13. Nf1 {[%emt 0:01:22]} Bxf1 {[%emt 0:09:49]} ({Black should try} 13... b5 $11) 14. Bxf1 $14 {[%emt 0:00:39]} c4 {[%emt 0:00:09] White is slightly better.} 15. Ng5 {[%emt 0:04:04]} Bxg5 {[%emt 0:16:42]} 16. Bxg5 {[%emt 0:00:39]} h6 {[%emt 0:00:59]} 17. Bf4 {[%emt 0:01:49]} Ne7 {[%emt 0:01:27]} 18. Qh5 {[%emt 0:02:30]} Rfc8 {[%emt 0:03:42]} 19. g4 {[%emt 0:08:29]} Qd8 {[%emt 0:00:41]} 20. Bd2 {[%emt 0:01:01]} f6 {[%emt 0:10:33]} 21. exf6 {[%emt 0:06:32]} (21. Bxh6 gxh6 22. exf6 (22. Qxh6 $2 Qf8 $19) 22... Nxf6 23. Qxh6 Qf8 24. Qxf8+ (24. Qg5+ Kf7 $17) 24... Rxf8 (24... Kxf8 25. Rxe6 Kf7 26. Rae1 $15) 25. Rxe6 Kf7 $15) 21... Nxf6 {[%emt 0:00:06]} 22. Qe5 {[%emt 0:00:37]} Rc6 {[%emt 0:00:06]} 23. f3 {[%emt 0:01:10] White is much more active.} (23. Bxh6 Ng6 24. Qe3 (24. Qg5 $2 Kh7 $19) 24... gxh6 25. Qxh6 Qe8 $17) 23... Ng6 {[%emt 0:03:07]} 24. Qg3 {[%emt 0:00:52]} Qf8 {[%emt 0:02:35]} 25. Re2 {[%emt 0:02:24]} Qf7 {[%emt 0:02:43]} 26. Rae1 {[%emt 0:02:23]} h5 {[%emt 0:02:39]} 27. h3 {[%emt 0:01:51]} Rf8 {[%emt 0:03:04]} 28. Bg2 {[%emt 0:00:55]} Ne8 {[%emt 0:04:48]} 29. Bg5 {[%emt 0:05:27]} Qc7 {[%emt 0:02:37] [#]} (29... Nf6 $16 30. Bc1 Kh8) 30. Qxc7 {[%emt 0:05:07]} (30. Qh2 $1 $18) 30... Nxc7 $16 {[%emt 0:00:01]} 31. gxh5 {[%emt 0:01:23]} Nf4 {[%emt 0:01:13]} (31... Rf5 $142) 32. Bxf4 {[%emt 0:00:08]} Rxf4 {[%emt 0:00:05]} 33. Kf2 {[%emt 0:00:06]} b5 {[%emt 0:03:49]} 34. Kg3 {[%emt 0:01:46]} Rf6 {[%emt 0:00:01]} 35. Re5 {[%emt 0:02:09]} a5 {[%emt 0:00:09][%cal Ba7a5,Ba5b4][%mdl 32]} 36. f4 {[%emt 0:00:58]} b4 {[%emt 0:02:08]} 37. axb4 (37. cxb4 $6 axb4 38. axb4 Rb6 $14) 37... axb4 {[%emt 0:00:01]} 38. f5 {[%emt 0:07:41] [#] fxe6 would now be deadly.} (38. cxb4 $6 Rb6 $14) 38... Kf7 {[%emt 0:02:12]} 39. fxe6+ (39. cxb4 Rxf5 40. Rxf5+ exf5 $16) 39... Rcxe6 {[%emt 0:00:02]} 40. Ra1 {[%emt 0:08:25]} (40. Bxd5 $2 Nxd5 41. cxb4 Nxb4 42. Rxe6 Rxe6 43. Rf1+ Ke7 $19) (40. Rxe6 $6 Rxe6 41. Rxe6 Kxe6 $16) 40... Ra6 {[%emt 0:02:25]} 41. Rae1 {[%emt 0:02:15]} (41. Bxd5+ $16 Nxd5 42. Rxa6 Rxa6 43. Rxd5 bxc3 44. bxc3) 41... Rfe6 {[%emt 0:01:12]} (41... Rae6 $1 $11 {keeps the balance.}) 42. Rxe6 {[%emt 0:03:28]} (42. cxb4 Rxe5 43. Rxe5 Ra2) (42. Rf1+ $16 Ke8 43. Rg5 (43. cxb4 Rxe5 44. dxe5 Rb6 $14)) 42... Rxe6 {[%emt 0:00:09][%mdl 4096] Endgame. KRB-KRN} 43. Ra1 {[%emt 0:00:39] And now Ra7 would win.} (43. Rxe6 Kxe6 44. cxb4 Nb5 $11) 43... Kf6 {[%emt 0:00:44]} 44. Kf2 {[%emt 0:03:39]} Rb6 {[%emt 0:00:52] The position is equal.} 45. Ra5 {[%emt 0:04:32]} bxc3 {[%emt 0:00:29]} 46. bxc3 {[%emt 0:00:02]} (46. Bxd5 $2 {loses.} c2 (46... Rxb2+ $2 47. Ke3 $19) (46... cxb2 $2 47. Be4 $19) 47. Ra1 Rxb2 $19 (47... Nxd5 $2 48. Ke2 $19)) 46... Rb3 {[%emt 0:00:16]} 47. Bxd5 {[%emt 0:00:41]} Nxd5 {[%emt 0:00:08]} 48. Rxd5 {[%emt 0:00:10]} Rxc3 {[%emt 0:00:07]} 49. Rc5 {[%emt 0:00:36] Black escapes into a draw.   Weighted Error Value: White=0.17 (very precise) /Black=0.19 (very precise) .  Mistake:       	White=3     	Black=4      Inaccurate:     	---       	Black=2      OK:         	White=15    	Black=11     Best:        	White=1     	---} 1/2-1/2

[Event "2nd Cambridge Open 2024"]
[Site "Cambridge"]
[Date "2024.02.19"]
[Round "2.8"]
[White "Wachinger, Nikolas"]
[Black "Pozzari, Simone"]
[Result "1-0"]
[ECO "C82"]
[WhiteElo "2437"]
[BlackElo "2282"]
[Annotator "TA"]
[PlyCount "89"]
[EventDate "2024.02.18"]
[EventType "swiss"]
[EventCountry "ENG"]
[SourceTitle "playchess.com"]
[Source "ChessBase"]
[SourceQuality "1"]
[TimeControl "5400+30"]

{[%evp 23,89,-13,0,0,0,0,0,0,0,0,0,0,0,0,22,27,43,-14,8,25,0,0,29,25,254,246,253,264,243,243,276,272,275,245,261,239,323,221,296,299,299,292,304,297,296,291,338,302,335,302,383,318,564,313,657,589,857,408,411,415,638,645,763,756,747,699,1390,1089]} 1. e4 {[%emt 0:02:19]} e5 {[%emt 0:00:05]} 2. Nf3 {[%emt 0:00:11]} Nc6 {[%emt 0:00:04]} 3. Bb5 {[%emt 0:00:11]} a6 {[%emt 0:00:08]} 4. Ba4 {[%emt 0:00:15]} Nf6 {[%emt 0:00:09]} 5. O-O {[%emt 0:00:27]} Nxe4 {[%emt 0:00:09]} 6. d4 {[%emt 0:00:11]} b5 {[%emt 0:00:06]} 7. Bb3 {[%emt 0:00:05]} d5 {[%emt 0:00:05]} 8. dxe5 {[%emt 0:00:07]} Be6 {[%emt 0:00:04]} 9. c3 {[%emt 0:00:37]} Bc5 {[%emt 0:00:06]} 10. Nbd2 {[%emt 0:00:19]} O-O {[%emt 0:00:07]} 11. Bc2 {[%emt 0:00:41]} Nxf2 {[%emt 0:00:09]} 12. Rxf2 {[%emt 0:00:07]} f6 {[%emt 0:00:06][%cal Bf7f6,Bf6e5,Be5e4][%mdl 32]} 13. Nf1 {[%emt 0:00:09]} Bxf2+ {[%emt 0:00:05]} 14. Kxf2 {[%emt 0:00:07]} fxe5 {[%emt 0:00:05]} 15. Kg1 {[%emt 0:00:10][%cal Oc2h7] The position is equal.} Qd6 {[%emt 0:06:54]} 16. Bg5 {[%emt 0:06:48][%cal Bc1g5,Bg5h4,Bh4g3][%mdl 32]} Rae8 {[%emt 0:07:15]} 17. Bh4 {[%emt 0:22:58]} e4 {[%emt 0:12:44]} 18. Bg3 {[%emt 0:23:12]} Qd7 {[%emt 0:00:41]} 19. Nd4 {[%emt 0:11:14][%cal Bf3d4,Bd4b3,Bb3c5][%mdl 32]} Bg4 {[%emt 0:03:16]} 20. Qd2 {[%emt 0:04:18]} (20. Qe1 $14) 20... Ne5 {[%emt 0:04:55]} (20... Na5 $5 21. h3 Nc4 $14) 21. Bxe5 {[%emt 0:03:41]} Rxe5 {[%emt 0:00:03]} 22. Ne3 {[%emt 0:00:10]} c5 {[%emt 0:19:07]} 23. Nb3 {[%emt 0:01:14] A dynamic duo of knights.} Rc8 {[%emt 0:00:08] [#] Black cannot hold the game after this.} (23... Qc8 $1 $11) 24. Nxc5 $1 $18 {[%emt 0:00:48][%mdl 512]} Rxc5 {[%emt 0:09:55]} 25. Qd4 $1 {[%emt 0:00:10][%csl LRc5,LRe5]} Qd6 {[%emt 0:12:02]} 26. Nxg4 {[%emt 0:00:23]} Rh5 {[%emt 0:00:22]} 27. Bb3 {[%emt 0:01:56][%cal Bc2b3,Bb3d5,Bd5f3][%mdl 32]} Rc8 {[%emt 0:02:02]} 28. Qxe4 {[%emt 0:00:35]} Kh8 {[%emt 0:00:44]} 29. Qd4 {[%emt 0:01:21]} Re8 {[%emt 0:01:49]} 30. Rd1 {[%emt 0:00:44][%cal Od1f1,Ba1d1,Bd1d2,Bd2f2][%mdl 32]} Qg6 {[%emt 0:02:07]} 31. h3 {[%emt 0:03:17]} (31. Bxd5 Rxd5 32. Qxd5 Qxg4 $14) 31... Rg5 {[%emt 0:00:32]} 32. Bxd5 {[%emt 0:03:50]} h5 {[%emt 0:06:17]} 33. Ne3 {[%emt 0:00:46]} Rge5 {[%emt 0:04:17]} 34. Nf1 {[%emt 0:03:10]} Re2 {[%emt 0:00:06]} 35. Rd2 {[%emt 0:01:43]} Re1 {[%emt 0:00:06]} 36. Rf2 {[%emt 0:01:01] Strongly threatening Bf7.} Qg5 {[%emt 0:00:37]} 37. Bf3 {[%emt 0:02:26]} Ra1 $2 {[%emt 0:01:18]} (37... R1e5 {might work better.} 38. Qa7 Qg6) 38. h4 {[%emt 0:02:26][%cal Bh3h4,Bh4h5][%mdl 32]} Qg6 {[%emt 0:00:48]} (38... Qe5 39. a3 Qxd4 40. cxd4 b4 41. axb4 (41. Bxh5 Rd8 $18) 41... Rb8 42. Bxh5 Re1) 39. Qd5 {[%emt 0:00:25]} Ree1 {[%emt 0:01:17]} 40. Qxh5+ {[%emt 0:00:42]} (40. Be2 $142 {Intending Rf8+ and mate.} Qe8 41. Bd3 (41. Bxh5 Rxf1+ 42. Rxf1 Qe3+ 43. Kh2 Rxf1 $17) (41. Qxh5+ Qxh5 42. Bxh5 Re6 $18)) 40... Qxh5 {[%emt 0:00:32]} 41. Bxh5 {[%emt 0:00:03]} g6 {[%emt 0:00:42]} (41... g5 $142 42. hxg5 Re5) 42. Bxg6 {[%emt 0:00:17] White is clearly winning.} Rxa2 {[%emt 0:00:06]} 43. h5 {[%emt 0:00:26]} Kg7 {[%emt 0:00:24]} 44. Kh2 {[%emt 0:00:13] Black must now prevent Rf7+.} a5 {[%emt 0:00:08]} 45. Ng3 {[%emt 0:00:10] Weighted Error Value: White=0.49/Black=0.63.  Loses game:     	---       	Black=1      Mistake:       	White=1     	Black=3      Inaccurate:     	White=2     	Black=4      OK:         	White=11    	Black=10     Best:        	White=3     	---        Brilliant:      	White=1     	---} 1-0

[Event "2nd Cambridge Open 2024"]
[Site "Cambridge"]
[Date "2024.02.19"]
[Round "2.9"]
[White "Shafi, Declan"]
[Black "Hanley, Craig A"]
[Result "0-1"]
[ECO "A49"]
[WhiteElo "2219"]
[BlackElo "2431"]
[Annotator "TA"]
[PlyCount "74"]
[EventDate "2024.02.18"]
[EventType "swiss"]
[EventCountry "ENG"]
[SourceTitle "playchess.com"]
[Source "ChessBase"]
[SourceQuality "1"]
[TimeControl "5400+30"]

{[%evp 9,73,62,66,60,68,43,47,38,45,25,23,-75,36,21,97,81,85,35,35,32,41,32,70,30,38,35,26,37,33,0,30,0,0,0,0,-287,-295,-288,-291,-298,-284,-399,-366,-677,-679,-876,-842,-836,-864,-970,-957,-1100,-1079,-1081,-968,-29985,-29986,-29986,-29987,-29987,-29988,-29989,-29990,-29990,-29990,-29999]} 1. d4 {[%emt 0:00:03]} g6 {[%emt 0:00:20]} 2. Nf3 {[%emt 0:00:57]} Bg7 {[%emt 0:00:45]} 3. g3 {[%emt 0:00:10]} b5 {[%emt 0:02:51]} 4. Bg2 {[%emt 0:01:41]} Bb7 {[%emt 0:00:08]} 5. O-O {[%emt 0:00:38]} Nf6 {[%emt 0:00:56]} 6. Qd3 {[%emt 0:02:00]} a6 {[%emt 0:01:42]} 7. Nbd2 {[%emt 0:01:25]} O-O {[%emt 0:01:31]} 8. e4 {[%emt 0:04:57] White is slightly better.} d6 {[%emt 0:00:29]} 9. Re1 {[%emt 0:01:41]} c5 {[%emt 0:03:54]} 10. c4 {[%emt 0:02:15]} (10. dxc5 $11 {keeps the balance.} dxc5 11. Qxd8 Rxd8 12. e5) 10... Nc6 {[%emt 0:10:43]} ({Black should play} 10... cxd4 $17 {White must now prevent ...e5.} 11. Nxd4 Qb6 12. cxb5 Ng4) 11. d5 $1 $14 {[%emt 0:03:41]} bxc4 {[%emt 0:10:32]} (11... Nd4 $11) 12. Nxc4 $16 {[%emt 0:00:49]} Na5 {[%emt 0:08:05]} 13. Bd2 {[%emt 0:02:37]} (13. Na3 $16) 13... Nxc4 $14 {[%emt 0:00:46]} 14. Qxc4 {[%emt 0:00:08]} Qb6 {[%emt 0:07:29]} 15. Bc3 {[%emt 0:02:06]} a5 {[%emt 0:00:54]} 16. Qb3 {[%emt 0:04:13]} Qc7 {[%emt 0:01:20]} 17. Nd2 {[%emt 0:02:34]} Rfb8 {[%emt 0:03:10][%cal Ob7d5]} 18. Qc2 {[%emt 0:01:33]} Nd7 {[%emt 0:01:32]} 19. Nc4 {[%emt 0:01:28]} a4 {[%emt 0:03:16]} 20. Rab1 {[%emt 0:03:49]} Ba6 {[%emt 0:03:39]} 21. Bxg7 {[%emt 0:09:19]} Kxg7 {[%emt 0:03:48]} 22. Qxa4 $2 {[%emt 0:01:27][%mdl 8192] [#] Black converts the advantage convincingly.} (22. Bf1 $11 {and White is okay.}) 22... Rb4 $1 $19 {[%emt 0:04:50]} 23. Qc6 {[%emt 0:11:41]} ({Wrong is} 23. Qa5 $2 Qb8 24. a3 Bxc4 $19 (24... Rxc4 $2 25. Qd2 $19)) 23... Qd8 {[%emt 0:02:08]} ({Weaker is} 23... Qxc6 24. dxc6 Bxc4 25. a3 $15) 24. Nxd6 {[%emt 0:08:04]} Rb6 {[%emt 0:00:36]} 25. Nxf7 {[%emt 0:00:47]} (25. Ne8+ {was the only defense.} Qxe8 26. Qc7) 25... Kxf7 {[%emt 0:01:06]} 26. e5 $2 {[%emt 0:02:58]} (26. Qa4 Bd3 27. Qd1 Bxb1 28. Qxb1) 26... Rxc6 {[%emt 0:00:46]} 27. e6+ {[%emt 0:00:08]} Kg7 {[%emt 0:03:38]} 28. dxc6 {[%emt 0:01:13]} Nf6 {[%emt 0:03:55]} 29. c7 {[%emt 0:07:12]} Qc8 {[%emt 0:00:11]} 30. Bxa8 {[%emt 0:02:02]} Qxa8 {[%emt 0:00:06]} 31. Rbc1 {[%emt 0:00:49]} Qc6 {[%emt 0:00:53][%cal Oa6b7] [#] Hoping for ...Bb7!} 32. b4 {[%emt 0:01:42]} Bb7 {[%emt 0:01:33][%csl Gb7][%cal Rc6g2] Black mates.} 33. Kf1 {[%emt 0:01:28]} Qg2+ {[%emt 0:02:28]} 34. Ke2 {[%emt 0:00:06]} Ba6+ {[%emt 0:00:30]} 35. Kd1 {[%emt 0:00:34]} Qd5+ {[%emt 0:00:05]} 36. Kc2 {[%emt 0:00:36]} Qxa2+ {[%emt 0:00:06]} 37. Kc3 {[%emt 0:00:08]} Nd5# {[%emt 0:00:00] Weighted Error Value: White=0.83/Black=0.21 (precise) .  Loses game:     	White=1     	---        Mistake:       	White=4     	Black=2      Inaccurate:     	White=3     	Black=2      OK:         	White=4     	Black=7      Best:        	---       	Black=2      Strong:       	White=1     	Black=1} 0-1

[Event "2nd Cambridge Open 2024"]
[Site "Cambridge"]
[Date "2024.02.19"]
[Round "2.10"]
[White "Roberson, Peter T"]
[Black "Denderski, Piotr"]
[Result "1-0"]
[ECO "B51"]
[WhiteElo "2424"]
[BlackElo "2137"]
[Annotator "TA"]
[PlyCount "51"]
[EventDate "2024.02.18"]
[EventType "swiss"]
[EventCountry "ENG"]
[SourceTitle "playchess.com"]
[Source "ChessBase"]
[SourceQuality "1"]
[TimeControl "5400+30"]

{[%evp 9,51,30,43,2,0,0,0,0,63,54,58,54,77,86,95,95,97,98,106,117,124,130,119,106,113,138,138,90,180,108,124,112,141,138,187,146,267,252,359,357,384,382,385,356]} 1. e4 {[%emt 0:00:03]} c5 {[%emt 0:00:06]} 2. Nf3 {[%emt 0:00:06]} Nc6 {[%emt 0:00:10]} 3. Bb5 {[%emt 0:00:08]} d6 {[%emt 0:00:06]} 4. O-O {[%emt 0:01:05]} Bd7 {[%emt 0:00:13]} 5. c3 {[%emt 0:01:03]} Nf6 {[%emt 0:01:59]} 6. d4 {[%emt 0:00:17][%cal Bd2d4,Bd4d5][%mdl 32]} Nxe4 {[%emt 0:05:03]} 7. d5 {[%emt 0:02:16][%cal Od1a4] [#] aiming for Qa4!} Ne5 {[%emt 0:00:28]} 8. Na3 {[%emt 0:00:17] The position is equal.} g6 {[%emt 0:24:49]} ({Black should try} 8... Nf6 $11) 9. Nxe5 $14 {[%emt 0:02:27]} dxe5 {[%emt 0:00:05]} 10. Qe2 {[%emt 0:00:23]} Bxb5 {[%emt 0:13:03]} 11. Nxb5 {[%emt 0:00:46]} Nd6 {[%emt 0:03:49]} 12. Qxe5 {[%emt 0:02:50]} Rg8 {[%emt 0:01:40]} 13. Qe2 {[%emt 0:07:50] White is much more active. The black rooks are passive.} a6 {[%emt 0:01:21]} 14. Nxd6+ {[%emt 0:04:48]} Qxd6 {[%emt 0:01:14]} 15. Rd1 {[%emt 0:04:17]} Bg7 {[%emt 0:03:33]} 16. Be3 {[%emt 0:05:47]} Be5 {[%emt 0:06:57]} 17. g3 {[%emt 0:03:10]} Rc8 {[%emt 0:00:37]} 18. Re1 {[%emt 0:03:04]} ({Better is} 18. Rd2) 18... Qd8 {[%emt 0:14:32]} (18... Qxd5 $16 19. Bf4 Bf6) 19. Qg4 {[%emt 0:11:01]} (19. Bg5 $18 Bd6 20. Qf3) 19... h5 {[%emt 0:02:55]} 20. Qf3 {[%emt 0:01:56][%cal Oe3c5]} Bd6 {[%emt 0:01:37]} 21. Bg5 {[%emt 0:00:26]} Rc7 {[%emt 0:00:05]} (21... Kf8 $16 {was worth a try.} 22. Bh6+ Ke8) 22. Re4 {[%emt 0:02:44]} Qc8 {[%emt 0:02:45]} (22... Rg7 $16 23. b3 Rh7) 23. Rae1 {[%emt 0:07:59]} Qf5 {[%emt 0:00:45]} (23... Kf8 {was called for.} 24. Bh6+ Rg7) 24. Qe3 $18 {[%emt 0:02:30] White is winning.} f6 {[%emt 0:06:18] [#]} 25. Bxf6 {[%emt 0:11:09][%mdl 512]} Qxf6 {[%emt 0:00:10]} 26. Re6 {[%emt 0:00:06] Weighted Error Value: White=0.12 (very precise) /Black=0.37.  Mistake:       	White=2     	Black=5      OK:         	White=9     	Black=2      Best:        	White=3     	Black=2      Brilliant:      	White=1     	---} 1-0

[Event "2nd Cambridge Open 2024"]
[Site "Cambridge"]
[Date "2024.02.19"]
[Round "2.11"]
[White "Brett, Andrew R"]
[Black "Haubro, Martin"]
[Result "0-1"]
[ECO "E51"]
[WhiteElo "2072"]
[BlackElo "2418"]
[Annotator "TA"]
[PlyCount "107"]
[EventDate "2024.02.18"]
[EventType "swiss"]
[EventCountry "ENG"]
[SourceTitle "playchess.com"]
[Source "ChessBase"]
[SourceQuality "1"]
[TimeControl "5400+30"]

{[%evp 18,107,13,18,27,8,16,15,20,11,21,-7,0,-4,28,21,28,9,25,7,7,10,10,0,0,-26,14,2,20,-27,-14,-12,-15,-29,-10,-30,-41,-39,0,-33,-29,-45,-54,-82,-64,-90,-92,-89,-56,-79,-57,-71,-57,-79,-4,-7,0,0,0,-52,-60,-49,-8,-91,-64,-133,-122,-259,-254,-301,-289,-349,-240,-337,-341,-339,-317,-342,-328,-421,-408,-593,-593,-4694,-631,-631,-621,-605,-590,-692,-681,-29998]} 1. d4 {[%emt 0:03:28]} Nf6 {[%emt 0:00:05]} 2. c4 {[%emt 0:00:06]} e6 {[%emt 0:00:02]} 3. Nc3 {[%emt 0:00:07]} Bb4 {[%emt 0:00:10]} 4. e3 {[%emt 0:00:16]} O-O {[%emt 0:00:06]} 5. Bd2 {[%emt 0:00:13]} d5 {[%emt 0:01:03]} 6. Nf3 {[%emt 0:01:55]} Nbd7 {[%emt 0:02:00]} 7. Rc1 {[%emt 0:01:01] 7.a3 is the modern continuation. E51: Nimzo-Indian: Rubinstein: 4...0-0 5 Nf3 d5.} b6 {[%emt 0:02:01]} 8. cxd5 {[%emt 0:09:58]} exd5 {[%emt 0:00:44]} 9. Qb3 {[%emt 0:01:53]} Bxc3 {[%emt 0:00:23]} 10. Bxc3 {[%emt 0:01:09]} Bb7 {[%emt 0:02:08]} 11. Be2 {[%emt 0:02:42]} Ne4 {[%emt 0:06:26]} 12. O-O {[%emt 0:03:29]} Re8 {[%emt 0:00:31]} 13. Be1 $146 {[%emt 0:02:46]} ({Predecessor:} 13. Qd1 Nxc3 14. Rxc3 c6 15. b4 Nf6 16. Qb3 Ne4 17. Rc2 a5 18. a4 axb4 19. Qxb4 {½-½ Bluebaum,M (2646)-Deac,B (2625) GER-ROM online blitz 2020 (5)}) 13... Rc8 {[%emt 0:03:43]} 14. Nd2 {[%emt 0:23:06]} Nd6 {[%emt 0:00:17]} 15. Qd1 {[%emt 0:17:07]} Qf6 {[%emt 0:12:07]} 16. b4 {[%emt 0:11:25]} c6 {[%emt 0:05:06]} 17. Kh1 {[%emt 0:01:17]} Qe7 {[%emt 0:09:29]} 18. Bd3 {[%emt 0:01:35]} g6 {[%emt 0:07:31]} 19. Nb3 {[%emt 0:07:02]} Nf8 {[%emt 0:07:04]} 20. Rc2 {[%emt 0:01:23]} Ne6 {[%emt 0:00:20]} 21. f3 {[%emt 0:01:49]} Ng7 {[%emt 0:02:43]} 22. Re2 {[%emt 0:01:01]} Rcd8 {[%emt 0:02:54]} 23. Na1 {[%emt 0:03:36]} (23. Qc1 {might be stronger.}) 23... Bc8 $11 {[%emt 0:02:32]} 24. Nc2 {[%emt 0:00:17]} Bf5 {[%emt 0:00:15]} 25. Bf2 {[%emt 0:00:41]} Ra8 {[%emt 0:02:06]} 26. Rfe1 {[%emt 0:00:44]} Bxd3 {[%emt 0:00:17]} 27. Qxd3 {[%emt 0:00:02]} a5 {[%emt 0:00:21]} 28. a3 {[%emt 0:00:17]} Ne6 {[%emt 0:01:07]} 29. Bg3 {[%emt 0:00:12]} Nc4 {[%emt 0:03:53]} 30. e4 {[%emt 0:00:45]} axb4 {[%emt 0:00:23]} 31. axb4 {[%emt 0:00:21] [#]} b5 $1 {[%emt 0:00:59]} 32. h3 {[%emt 0:01:13]} Qg5 {[%emt 0:04:22]} 33. Bh2 {[%emt 0:00:31]} Ra2 {[%emt 0:04:08]} 34. exd5 {[%emt 0:01:32]} Qxd5 {[%emt 0:00:48]} 35. Ne3 {[%emt 0:01:38]} Nxe3 {[%emt 0:00:06]} (35... Qxd4 $2 36. Qxd4 Rxe2 37. Qc3 Rxe1+ 38. Qxe1 $18) ({Black should try} 35... Rxe2 $17 36. Qxe2 Nxd4 (36... Qxd4 37. Nxc4 bxc4 38. Rd1 $11) 37. Nxd5 Rxe2 38. Rxe2 Nxe2 39. Ne7+ Kf8 40. Nxc6 Ke8) 36. Rxe3 $11 {[%emt 0:00:28]} Rd8 {[%emt 0:00:50]} (36... Qxd4 $2 37. Qxd4 Nxd4 38. Rxe8+ $18) 37. Be5 {[%emt 0:00:27]} Rda8 {[%emt 0:03:48]} (37... Nxd4 $2 38. Bxd4 Raa8 39. Qc3 Qxd4 40. Re8+ (40. Qxc6 Qxb4 41. Re4 Qa5 $15) 40... Rxe8 41. Rxe8+ (41. Qxd4 $2 Rxe1+ 42. Kh2 h5 $19) 41... Rxe8 42. Qxd4 $18) 38. Qb3 {[%emt 0:01:11]} (38. Qe4 $11) 38... Qxb3 $15 {[%emt 0:02:03]} (38... Nxd4 $2 {too greedy.} 39. Qxd5 cxd5 40. Bxd4 $18) 39. Rxb3 {[%emt 0:00:01]} Rc2 {[%emt 0:00:09]} 40. Bf6 {[%emt 0:00:30]} (40. Rbb1 $11) 40... h6 {[%emt 0:04:21]} 41. Rbe3 {[%emt 0:01:05]} (41. Be5 $15) 41... Raa2 $17 {[%emt 0:00:58]} 42. d5 {[%emt 0:00:34]} (42. Be5 $17) 42... cxd5 $19 {[%emt 0:00:06]} 43. Rd3 {[%emt 0:00:02]} Rxg2 {[%emt 0:03:43]} 44. Rxd5 {[%emt 0:00:07]} Rh2+ {[%emt 0:00:08]} 45. Kg1 {[%emt 0:00:06]} g5 {[%emt 0:00:03]} ({Worse is} 45... Rxh3 46. Rd8+ Nf8 (46... Nxd8 47. Re8+ Kh7 48. Rh8#) 47. Be5 $11 (47. Ree8 Rg3+ 48. Kh1 Rh3+ 49. Kg1 Rg3+ 50. Kf1 Kh7 $11)) 46. Be5 {[%emt 0:01:28]} Rxh3 {[%emt 0:00:30]} 47. Rxb5 {[%emt 0:00:23]} Rxf3 {[%emt 0:00:12]} 48. Rb8+ {[%emt 0:00:50]} Kh7 {[%emt 0:00:05]} 49. b5 {[%emt 0:00:08]} (49. Rf1 {keeps fighting.} Rxf1+ 50. Kxf1) 49... Nf4 $19 {[%emt 0:04:31]} 50. Bxf4 {[%emt 0:00:51]} Rxf4 {[%emt 0:00:04]} (50... gxf4 $142 51. Rb7 Rg3+ 52. Kf1 Rh3) 51. b6 {[%emt 0:00:13]} Rb2 {[%emt 0:03:28]} (51... Rg4+ $2 52. Kh1 $19) 52. b7 {[%emt 0:00:24]} Kg7 {[%emt 0:00:39]} 53. Ree8 {[%emt 0:00:58]} Rd4 {[%emt 0:00:59]} 54. Kh1 {[%emt 0:00:35]} 0-1